[Event "FIDE Women World Blitz 2021"]
[Site "Warsaw"]
[Date "2021.12.30"]
[Round "10.30"]
[White "Cyfka, Karina"]
[Black "Sliwicka, Alicja"]
[Result "1-0"]
[ECO "E60"]
[WhiteElo "2416"]
[BlackElo "2303"]
[Annotator "NA"]
[PlyCount "93"]
[EventDate "2021.12.29"]
[EventType "swiss"]
[EventCountry "POL"]
[Tiebreak "Cut1 Buchholz"]
[SourceTitle "playchess.com"]
[Source "ChessBase"]
[SourceQuality "1"]
[TimeControl "180+2"]

1. Nf3 {[%emt 0:00:02]} Nf6 {[%emt 0:00:01]} 2. e3 {[%emt 0:00:01]} d6 {
[%emt 0:00:01]} 3. c4 {[%emt 0:00:01]} Nbd7 {[%emt 0:00:02]} 4. b3 {[%emt 0:00:
14]} e5 {[%emt 0:00:02]} 5. Bb2 {[%emt 0:00:01]} g6 {[%emt 0:00:01]} 6. d4 {
[%emt 0:00:08]} Bg7 {[%emt 0:00:17]} 7. dxe5 {[%emt 0:00:12]} Ng4 {[%emt 0:00:
26]} 8. Be2 {[%emt 0:00:17]} Ngxe5 {[%emt 0:00:09]} 9. Nxe5 {[%emt 0:00:03]}
Nxe5 {[%emt 0:00:07]} 10. Nc3 {[%emt 0:00:03]} O-O {[%emt 0:00:04]} 11. O-O {
[%emt 0:00:05]} Bd7 {[%emt 0:00:11]} 12. Qd2 {[%emt 0:00:09]} Qh4 {[%emt 0:00:
07]} 13. f4 {[%emt 0:00:48]} Ng4 {[%emt 0:00:12]} 14. Bxg4 {[%emt 0:00:07]}
Bxg4 {[%emt 0:00:12]} 15. Nd5 {[%emt 0:00:06]} Qd8 {[%emt 0:00:52]} 16. Bxg7 {
[%emt 0:00:11]} Kxg7 {[%emt 0:00:01]} 17. e4 {[%emt 0:00:04]} c6 {[%emt 0:00:
36]} 18. Ne3 {[%emt 0:00:17]} Bc8 {[%emt 0:00:01]} 19. f5 {[%emt 0:00:11]} f6 {
[%emt 0:00:03]} 20. Rad1 {[%emt 0:00:07]} Qe7 {[%emt 0:00:03]} 21. Ng4 {
[%emt 0:00:12]} g5 {[%emt 0:00:04]} 22. Nf2 {[%emt 0:00:05]} Rd8 {[%emt 0:00:
08]} 23. Rfe1 {[%emt 0:00:03]} b6 {[%emt 0:00:00]} 24. Ng4 {[%emt 0:00:11]} h5
{[%emt 0:00:03]} 25. Nf2 {[%emt 0:00:05]} Bb7 {[%emt 0:00:01]} 26. Qe2 {
[%emt 0:00:02]} Rh8 {[%emt 0:00:02]} 27. Nd3 {[%emt 0:00:04]} Rad8 {[%emt 0:00:
01]} 28. Qe3 {[%emt 0:00:03]} a5 {[%emt 0:00:04]} 29. Nf2 {[%emt 0:00:01]} Qc7
{[%emt 0:00:01]} 30. a3 {[%emt 0:00:03]} Ba6 {[%emt 0:00:02]} 31. h4 {[%emt 0:
00:01]} g4 {[%emt 0:00:03]} 32. Nd3 {[%emt 0:00:02]} a4 {[%emt 0:00:02]} 33.
Nf4 {[%emt 0:00:01]} Rhe8 {[%emt 0:00:02]} 34. Nxh5+ {[%emt 0:00:02]} Kf7 {
[%emt 0:00:01]} 35. Qh6 {[%emt 0:00:01]} Rg8 {[%emt 0:00:03]} 36. Qxf6+ {
[%emt 0:00:02]} Ke8 {[%emt 0:00:01]} 37. Qe6+ {[%emt 0:00:01]} Kf8 {[%emt 0:00:
02]} 38. Qh6+ {[%emt 0:00:05]} Kf7 {[%emt 0:00:02]} 39. Nf4 {[%emt 0:00:03]}
Rde8 {[%emt 0:00:02]} 40. Qh5+ {[%emt 0:00:02]} Ke7 {[%emt 0:00:02]} 41. Ne6 {
[%emt 0:00:02]} Qb7 {[%emt 0:00:04]} 42. Qh7+ {[%emt 0:00:01]} Kf6 {[%emt 0:00:
01]} 43. Qh6+ {[%emt 0:00:01]} Ke7 {[%emt 0:00:01]} 44. Nf4 {[%emt 0:00:02]}
Qb8 {[%emt 0:00:02]} 45. Qe6+ {[%emt 0:00:02]} Kd8 {[%emt 0:00:02]} 46. Rxd6+ {
[%emt 0:00:02]} Kc7 {[%emt 0:00:01]} 47. Qd7# {[%emt 0:00:01]} 1-0

[Event "FIDE Women World Blitz 2021"]
[Site "Warsaw"]
[Date "2021.12.30"]
[Round "10.31"]
[White "Danielian, Elina"]
[Black "Yakimova, Mariya"]
[Result "1-0"]
[ECO "D00"]
[WhiteElo "2450"]
[BlackElo "2219"]
[Annotator "ChessBase"]
[PlyCount "77"]
[EventDate "2021.12.29"]
[EventType "swiss"]
[EventCountry "POL"]
[Tiebreak "Cut1 Buchholz"]
[SourceTitle "playchess.com"]
[Source "ChessBase"]
[SourceQuality "1"]
[TimeControl "180+2"]

1. d4 {[%emt 0:00:01]} Nf6 {[%emt 0:00:01]} 2. Bg5 {[%emt 0:00:01]} d5 {
[%emt 0:00:05]} 3. Bxf6 {[%emt 0:00:01]} gxf6 {[%emt 0:00:01]} 4. e3 {[%emt 0:
00:02]} c5 {[%emt 0:00:01]} 5. c4 {[%emt 0:00:01]} cxd4 {[%emt 0:00:12]} 6.
exd4 {[%emt 0:00:01]} e6 {[%emt 0:00:11]} 7. Nc3 {[%emt 0:00:02]} dxc4 {
[%emt 0:00:09]} 8. Bxc4 {[%emt 0:00:02]} Bg7 {[%emt 0:00:13]} 9. Nf3 {[%emt 0:
00:02]} a6 {[%emt 0:00:04]} 10. O-O {[%emt 0:00:06]} O-O {[%emt 0:00:03]} 11.
Re1 {[%emt 0:00:08]} b5 {[%emt 0:00:02]} 12. Bb3 {[%emt 0:00:07]} Bb7 {[%emt 0:
00:06]} 13. d5 {[%emt 0:00:06]} e5 {[%emt 0:00:07]} 14. Qd3 {[%emt 0:00:16]}
Nd7 {[%emt 0:00:03]} 15. Bc2 {[%emt 0:00:03]} Re8 {[%emt 0:00:09]} 16. Qxh7+ {
[%emt 0:00:02]} Kf8 {[%emt 0:00:00]} 17. Nh4 {[%emt 0:00:11]} f5 {[%emt 0:00:
47]} 18. Nxf5 {[%emt 0:00:03]} Qf6 {[%emt 0:00:02]} 19. Ne4 {[%emt 0:00:26]}
Qg6 {[%emt 0:00:09]} 20. Qxg6 {[%emt 0:00:04]} fxg6 {[%emt 0:00:02]} 21. Nfd6 {
[%emt 0:00:01]} Reb8 {[%emt 0:00:02]} 22. Rad1 {[%emt 0:00:09]} Nb6 {[%emt 0:
00:07]} 23. Nxb7 {[%emt 0:00:06]} Rxb7 {[%emt 0:00:01]} 24. Ng5 {[%emt 0:00:05]
} Bf6 {[%emt 0:00:17]} 25. Ne6+ {[%emt 0:00:15]} Kf7 {[%emt 0:00:01]} 26. Bb3 {
[%emt 0:00:12]} Nc4 {[%emt 0:00:01]} 27. Nc5 {[%emt 0:00:05]} Rc7 {[%emt 0:00:
07]} 28. Ne4 {[%emt 0:00:04]} Rd8 {[%emt 0:00:17]} 29. Bxc4 {[%emt 0:00:08]}
Rxc4 {[%emt 0:00:04]} 30. d6 {[%emt 0:00:44]} Rc2 {[%emt 0:00:14]} 31. b4 {
[%emt 0:00:04]} Rb2 {[%emt 0:00:16]} 32. a3 {[%emt 0:00:03]} Rb3 {[%emt 0:00:
01]} 33. Rc1 {[%emt 0:00:01]} Bh8 {[%emt 0:00:07]} 34. Rc7+ {[%emt 0:00:02]}
Kg8 {[%emt 0:00:02]} 35. Rd1 {[%emt 0:00:07]} Rxa3 {[%emt 0:00:02]} 36. h4 {
[%emt 0:00:02]} Bg7 {[%emt 0:00:02]} 37. d7 {[%emt 0:00:02]} Bf8 {[%emt 0:00:
01]} 38. Ng5 {[%emt 0:00:13]} Be7 {[%emt 0:00:02]} 39. Ne6 {[%emt 0:00:01]} 1-0

[Event "FIDE Women World Blitz 2021"]
[Site "Warsaw"]
[Date "2021.12.30"]
[Round "10.32"]
[White "Antolak, Julia"]
[Black "Dworakowska, Joanna"]
[Result "0-1"]
[ECO "B23"]
[WhiteElo "2334"]
[BlackElo "2228"]
[Annotator "NA"]
[PlyCount "132"]
[EventDate "2021.12.29"]
[EventType "swiss"]
[EventCountry "POL"]
[Tiebreak "Cut1 Buchholz"]
[SourceTitle "playchess.com"]
[Source "ChessBase"]
[SourceQuality "1"]
[TimeControl "180+2"]

1. e4 {[%emt 0:00:01]} c5 {[%emt 0:00:01]} 2. Nc3 {[%emt 0:00:01]} d6 {[%emt 0:
00:02]} 3. d4 {[%emt 0:00:01]} cxd4 {[%emt 0:00:02]} 4. Qxd4 {[%emt 0:00:01]}
a6 {[%emt 0:00:21]} 5. b3 {[%emt 0:00:06]} Nf6 {[%emt 0:00:05]} 6. Bb2 {
[%emt 0:00:01]} e6 {[%emt 0:00:17]} 7. O-O-O {[%emt 0:00:15]} Be7 {[%emt 0:00:
01]} 8. f3 {[%emt 0:00:01]} h5 {[%emt 0:00:10]} 9. Bd3 {[%emt 0:00:51]} Qc7 {
[%emt 0:00:16]} 10. Kb1 {[%emt 0:00:04]} Qc5 {[%emt 0:00:30]} 11. Na4 {[%emt 0:
00:31]} Qxd4 {[%emt 0:00:10]} 12. Bxd4 {[%emt 0:00:01]} Nbd7 {[%emt 0:00:04]}
13. c4 {[%emt 0:00:01]} Rb8 {[%emt 0:00:14]} 14. Ne2 {[%emt 0:00:07]} b6 {
[%emt 0:00:14]} 15. Rhe1 {[%emt 0:00:10]} e5 {[%emt 0:00:22]} 16. Be3 {[%emt 0:
00:04]} Nc5 {[%emt 0:00:01]} 17. Nac3 {[%emt 0:00:15]} Bd7 {[%emt 0:00:14]} 18.
Bc2 {[%emt 0:00:06]} Bc6 {[%emt 0:00:03]} 19. h3 {[%emt 0:00:12]} b5 {[%emt 0:
00:05]} 20. cxb5 {[%emt 0:00:02]} axb5 {[%emt 0:00:01]} 21. Nc1 {[%emt 0:00:14]
} b4 {[%emt 0:00:03]} 22. N3e2 {[%emt 0:00:08]} Nfd7 {[%emt 0:00:05]} 23. Nd3 {
[%emt 0:00:06]} Ne6 {[%emt 0:00:04]} 24. Bd2 {[%emt 0:00:06]} d5 {[%emt 0:00:
03]} 25. exd5 {[%emt 0:00:02]} Bxd5 {[%emt 0:00:01]} 26. Ng3 {[%emt 0:00:06]}
f6 {[%emt 0:00:05]} 27. Nf5 {[%emt 0:00:04]} Bf8 {[%emt 0:00:02]} 28. Ne3 {
[%emt 0:00:04]} Ba8 {[%emt 0:00:02]} 29. Rc1 {[%emt 0:00:04]} Kf7 {[%emt 0:00:
01]} 30. Nc4 {[%emt 0:00:05]} Be7 {[%emt 0:00:02]} 31. Nf2 {[%emt 0:00:02]}
Rhc8 {[%emt 0:00:01]} 32. Be4 {[%emt 0:00:00]} Bxe4+ {[%emt 0:00:04]} 33. Nxe4
{[%emt 0:00:01]} Kg6 {[%emt 0:00:05]} 34. g4 {[%emt 0:00:05]} hxg4 {[%emt 0:00:
02]} 35. hxg4 {[%emt 0:00:00]} Ndc5 {[%emt 0:00:01]} 36. Nxc5 {[%emt 0:00:04]}
Bxc5 {[%emt 0:00:02]} 37. Be3 {[%emt 0:00:02]} Bd4 {[%emt 0:00:02]} 38. Bxd4 {
[%emt 0:00:02]} Nxd4 {[%emt 0:00:01]} 39. f4 {[%emt 0:00:02]} exf4 {[%emt 0:00:
02]} 40. Re4 {[%emt 0:00:01]} Rd8 {[%emt 0:00:03]} 41. Rf1 {[%emt 0:00:06]} Nb5
{[%emt 0:00:04]} 42. Rexf4 {[%emt 0:00:02]} Nc3+ {[%emt 0:00:01]} 43. Kb2 {
[%emt 0:00:01]} Re8 {[%emt 0:00:02]} 44. R4f2 {[%emt 0:00:02]} Re4 {[%emt 0:00:
02]} 45. Rg2 {[%emt 0:00:03]} Rbe8 {[%emt 0:00:01]} 46. Rc1 {[%emt 0:00:04]}
Re2+ {[%emt 0:00:02]} 47. Rxe2 {[%emt 0:00:01]} Rxe2+ {[%emt 0:00:02]} 48. Rc2
{[%emt 0:00:00]} Re1 {[%emt 0:00:03]} 49. Rc1 {[%emt 0:00:03]} Re4 {[%emt 0:00:
02]} 50. a3 {[%emt 0:00:02]} Re2+ {[%emt 0:00:01]} 51. Rc2 {[%emt 0:00:02]}
Nd1+ {[%emt 0:00:04]} 52. Kc1 {[%emt 0:00:01]} Rxc2+ {[%emt 0:00:02]} 53. Kxc2
{[%emt 0:00:01]} bxa3 {[%emt 0:00:01]} 54. Nxa3 {[%emt 0:00:03]} Ne3+ {[%emt 0:
00:01]} 55. Kd3 {[%emt 0:00:00]} Nxg4 {[%emt 0:00:01]} 56. b4 {[%emt 0:00:01]}
Ne5+ {[%emt 0:00:01]} 57. Ke4 {[%emt 0:00:02]} Nd7 {[%emt 0:00:07]} 58. b5 {
[%emt 0:00:02]} Kf7 {[%emt 0:00:04]} 59. Kd5 {[%emt 0:00:02]} Ke7 {[%emt 0:00:
01]} 60. Nc4 {[%emt 0:00:02]} g5 {[%emt 0:00:02]} 61. Ne3 {[%emt 0:00:02]} Nb6+
{[%emt 0:00:04]} 62. Kc6 {[%emt 0:00:01]} Na4 {[%emt 0:00:01]} 63. Kd5 {
[%emt 0:00:04]} Kf7 {[%emt 0:00:03]} 64. Ke4 {[%emt 0:00:03]} Nc3+ {[%emt 0:00:
02]} 65. Kf5 {[%emt 0:00:03]} Nxb5 {[%emt 0:00:02]} 66. Ng4 {[%emt 0:00:02]}
Nd6# {[%emt 0:00:01]} 0-1

[Event "FIDE Women World Blitz 2021"]
[Site "Warsaw"]
[Date "2021.12.30"]
[Round "10.33"]
[White "Strutinskaia, Galina"]
[Black "Gaboyan, Susanna"]
[Result "1-0"]
[ECO "D91"]
[WhiteElo "2188"]
[BlackElo "2253"]
[Annotator "NA"]
[PlyCount "92"]
[EventDate "2021.12.29"]
[EventType "swiss"]
[EventCountry "POL"]
[Tiebreak "Cut1 Buchholz"]
[SourceTitle "playchess.com"]
[Source "ChessBase"]
[SourceQuality "1"]
[TimeControl "180+2"]

1. d4 {[%emt 0:00:01]} Nf6 {[%emt 0:00:01]} 2. c4 g6 {[%emt 0:00:01]} 3. Nc3 {
[%emt 0:00:04]} d5 {[%emt 0:00:01]} 4. Bg5 {[%emt 0:00:03]} Bg7 {[%emt 0:00:05]
} 5. Nf3 {[%emt 0:00:10]} Ne4 {[%emt 0:00:07]} 6. Bf4 {[%emt 0:00:01]} Nxc3 {
[%emt 0:00:04]} 7. bxc3 {[%emt 0:00:02]} dxc4 {[%emt 0:00:01]} 8. e3 {[%emt 0:
00:03]} b5 {[%emt 0:00:40]} 9. a4 {[%emt 0:00:01]} c6 {[%emt 0:00:01]} 10. Be5
{[%emt 0:00:15]} O-O {[%emt 0:00:07]} 11. h4 {[%emt 0:00:02]} Bg4 {[%emt 0:00:
08]} 12. Be2 {[%emt 0:00:11]} h5 {[%emt 0:00:06]} 13. axb5 {[%emt 0:00:08]}
cxb5 {[%emt 0:00:01]} 14. Bxb8 {[%emt 0:00:02]} Qxb8 {[%emt 0:00:05]} 15. O-O {
[%emt 0:00:04]} Qd6 {[%emt 0:00:10]} 16. Ra5 {[%emt 0:00:03]} a6 {[%emt 0:00:
17]} 17. Qa1 {[%emt 0:00:02]} Rfb8 {[%emt 0:00:33]} 18. Re1 {[%emt 0:00:03]} e6
{[%emt 0:00:05]} 19. Ng5 {[%emt 0:00:20]} Qc6 {[%emt 0:00:23]} 20. f3 {[%emt 0:
00:10]} f6 {[%emt 0:00:16]} 21. fxg4 {[%emt 0:00:02]} fxg5 {[%emt 0:00:01]} 22.
Bf3 {[%emt 0:00:01]} Qb6 {[%emt 0:00:16]} 23. Bxa8 {[%emt 0:00:03]} Rxa8 {
[%emt 0:00:01]} 24. gxh5 {[%emt 0:00:03]} gxh4 {[%emt 0:00:04]} 25. Rb1 {
[%emt 0:00:17]} Rf8 {[%emt 0:00:11]} 26. Rxa6 {[%emt 0:00:03]} Qb7 {[%emt 0:00:
02]} 27. Rxe6 {[%emt 0:00:06]} Qf7 {[%emt 0:00:02]} 28. Re4 {[%emt 0:00:23]}
Qf2+ {[%emt 0:00:02]} 29. Kh1 h3 30. Rg1 {[%emt 0:00:12]} h2 {[%emt 0:00:06]}
31. Kxh2 {[%emt 0:00:03]} Rf3 {[%emt 0:00:02]} 32. Qe1 {[%emt 0:00:09]} Qc2 {
[%emt 0:00:02]} 33. Rf4 {[%emt 0:00:07]} Rxf4 34. exf4 {[%emt 0:00:01]} Qf5 {
[%emt 0:00:04]} 35. Qe8+ {[%emt 0:00:05]} Kh7 {[%emt 0:00:03]} 36. Qxg6+ {
[%emt 0:00:02]} Qxg6 {[%emt 0:00:01]} 37. hxg6+ {[%emt 0:00:01]} Kxg6 {[%emt 0:
00:01]} 38. g4 {[%emt 0:00:01]} b4 {[%emt 0:00:01]} 39. cxb4 Bxd4 40. Rc1 {
[%emt 0:00:04]} c3 {[%emt 0:00:02]} 41. Kg3 {[%emt 0:00:01]} Kf6 {[%emt 0:00:
01]} 42. Kf3 {[%emt 0:00:01]} Ke6 {[%emt 0:00:01]} 43. Ke4 {[%emt 0:00:01]} Bg7
{[%emt 0:00:01]} 44. f5+ {[%emt 0:00:03]} Kd6 {[%emt 0:00:00]} 45. g5 {[%emt 0:
00:01]} Be5 {[%emt 0:00:01]} 46. f6 {[%emt 0:00:01]} Ke6 {[%emt 0:00:01]} 1-0

[Event "FIDE Women World Blitz 2021"]
[Site "Warsaw"]
[Date "2021.12.30"]
[Round "10.34"]
[White "Fernandez, Maria Florencia"]
[Black "Loskutova, Viktoriya"]
[Result "1-0"]
[ECO "E12"]
[WhiteElo "2184"]
[BlackElo "2195"]
[Annotator "NA"]
[PlyCount "95"]
[EventDate "2021.12.29"]
[EventType "swiss"]
[EventCountry "POL"]
[Tiebreak "Cut1 Buchholz"]
[SourceTitle "playchess.com"]
[Source "ChessBase"]
[SourceQuality "1"]
[TimeControl "180+2"]

1. d4 {[%emt 0:00:02]} Nf6 {[%emt 0:00:01]} 2. c4 {[%emt 0:00:00]} e6 {[%emt 0:
00:00]} 3. Nf3 {[%emt 0:00:02]} b6 {[%emt 0:00:03]} 4. a3 {[%emt 0:00:01]} Bb7
{[%emt 0:00:01]} 5. Nc3 {[%emt 0:00:01]} Ne4 {[%emt 0:00:05]} 6. Qc2 {[%emt 0:
00:02]} Nxc3 {[%emt 0:00:06]} 7. Qxc3 {[%emt 0:00:02]} Be7 {[%emt 0:00:05]} 8.
e3 {[%emt 0:00:07]} O-O {[%emt 0:00:02]} 9. Bd3 {[%emt 0:00:01]} d5 {[%emt 0:
00:27]} 10. O-O {[%emt 0:00:07]} Nd7 {[%emt 0:00:25]} 11. b4 {[%emt 0:00:04]}
dxc4 {[%emt 0:00:29]} 12. Bxc4 {[%emt 0:00:03]} c5 {[%emt 0:00:29]} 13. bxc5 {
[%emt 0:00:06]} bxc5 {[%emt 0:00:02]} 14. Bb2 {[%emt 0:00:05]} Bf6 {[%emt 0:00:
02]} 15. Qd3 {[%emt 0:00:28]} Qc7 {[%emt 0:00:15]} 16. Rac1 {[%emt 0:00:09]}
Rac8 {[%emt 0:00:40]} 17. Ba2 {[%emt 0:00:05]} Qb8 {[%emt 0:00:02]} 18. Bb1 {
[%emt 0:00:06]} g6 {[%emt 0:00:02]} 19. Ba1 {[%emt 0:00:23]} Rfd8 {[%emt 0:00:
03]} 20. Qe2 {[%emt 0:00:10]} Bg7 {[%emt 0:00:10]} 21. Ba2 {[%emt 0:00:10]}
cxd4 {[%emt 0:00:07]} 22. exd4 {[%emt 0:00:18]} Qa8 {[%emt 0:00:02]} 23. Ng5 {
[%emt 0:00:43]} Rxc1 {[%emt 0:00:03]} 24. Rxc1 {[%emt 0:00:02]} Nf8 {[%emt 0:
00:01]} 25. f3 {[%emt 0:00:11]} Bd5 {[%emt 0:00:01]} 26. Bb1 {[%emt 0:00:03]}
Qb8 {[%emt 0:00:01]} 27. Rd1 {[%emt 0:00:11]} Qb6 {[%emt 0:00:02]} 28. Qd3 {
[%emt 0:00:06]} Bb7 {[%emt 0:00:02]} 29. Ne4 {[%emt 0:00:02]} Ba6 {[%emt 0:00:
02]} 30. Qd2 {[%emt 0:00:02]} Bb7 {[%emt 0:00:02]} 31. Kh1 {[%emt 0:00:01]} Bd5
{[%emt 0:00:01]} 32. Nc5 {[%emt 0:00:01]} Nd7 {[%emt 0:00:01]} 33. Ne4 {
[%emt 0:00:03]} Nf6 {[%emt 0:00:02]} 34. Nc5 {[%emt 0:00:03]} Nd7 {[%emt 0:00:
01]} 35. Rc1 {[%emt 0:00:03]} Qb8 {[%emt 0:00:02]} 36. Bc3 {[%emt 0:00:03]} Nb6
{[%emt 0:00:01]} 37. Bd3 {[%emt 0:00:03]} Nc4 {[%emt 0:00:02]} 38. Bxc4 {
[%emt 0:00:01]} Bxc4 {[%emt 0:00:01]} 39. Ba1 {[%emt 0:00:03]} Bd5 {[%emt 0:00:
01]} 40. Qc2 {[%emt 0:00:02]} Ba8 {[%emt 0:00:02]} 41. Rb1 {[%emt 0:00:01]} Qc8
{[%emt 0:00:02]} 42. Qa4 {[%emt 0:00:03]} Bc6 {[%emt 0:00:03]} 43. Qxa7 {
[%emt 0:00:01]} Bxd4 {[%emt 0:00:03]} 44. Bxd4 {[%emt 0:00:01]} Rxd4 {[%emt 0:
00:01]} 45. Nxe6 {[%emt 0:00:04]} fxe6 {[%emt 0:00:03]} 46. Qxd4 {[%emt 0:00:
01]} Qd7 {[%emt 0:00:01]} 47. Rb8+ {[%emt 0:00:04]} Kf7 {[%emt 0:00:02]} 48.
Qf4+ {[%emt 0:00:02]} 1-0

[Event "FIDE Women World Blitz 2021"]
[Site "Warsaw"]
[Date "2021.12.30"]
[Round "10.35"]
[White "Pavlidou, Ekaterini"]
[Black "Kucharska, Honorata"]
[Result "1-0"]
[ECO "E70"]
[WhiteElo "2177"]
[BlackElo "2168"]
[Annotator "NA"]
[PlyCount "75"]
[EventDate "2021.12.29"]
[EventType "swiss"]
[EventCountry "POL"]
[Tiebreak "Cut1 Buchholz"]
[SourceTitle "playchess.com"]
[Source "ChessBase"]
[SourceQuality "1"]
[TimeControl "180+2"]

1. d4 {[%emt 0:00:02]} Nf6 {[%emt 0:00:01]} 2. c4 {[%emt 0:00:01]} g6 {[%emt 0:
00:01]} 3. Nc3 {[%emt 0:00:01]} Bg7 {[%emt 0:00:01]} 4. e4 {[%emt 0:00:01]} O-O
{[%emt 0:00:07]} 5. Bd3 {[%emt 0:00:02]} d6 {[%emt 0:00:01]} 6. Nge2 {[%emt 0:
00:01]} e5 {[%emt 0:00:02]} 7. d5 {[%emt 0:00:02]} Nbd7 {[%emt 0:00:02]} 8. h3
{[%emt 0:00:03]} Nc5 {[%emt 0:00:02]} 9. Bc2 {[%emt 0:00:01]} a5 {[%emt 0:00:
01]} 10. Be3 {[%emt 0:00:02]} Ne8 {[%emt 0:00:21]} 11. g4 {[%emt 0:00:01]} f5 {
[%emt 0:00:13]} 12. gxf5 {[%emt 0:00:03]} gxf5 {[%emt 0:00:01]} 13. exf5 {
[%emt 0:00:02]} Bxf5 {[%emt 0:00:01]} 14. Ng3 {[%emt 0:00:36]} Bxc2 {[%emt 0:
00:37]} 15. Qxc2 {[%emt 0:00:01]} Qh4 {[%emt 0:00:10]} 16. Nce4 {[%emt 0:00:18]
} Nxe4 {[%emt 0:00:13]} 17. Qxe4 {[%emt 0:00:02]} Qxe4 {[%emt 0:00:05]} 18.
Nxe4 {[%emt 0:00:01]} h6 {[%emt 0:00:01]} 19. Rg1 {[%emt 0:00:06]} Kh7 {
[%emt 0:00:02]} 20. c5 {[%emt 0:00:31]} Nf6 {[%emt 0:00:22]} 21. Nxf6+ {
[%emt 0:00:08]} Rxf6 {[%emt 0:00:03]} 22. Rc1 {[%emt 0:00:04]} dxc5 {[%emt 0:
00:10]} 23. Rxc5 {[%emt 0:00:01]} Rf7 {[%emt 0:00:02]} 24. Ke2 {[%emt 0:00:11]}
b6 {[%emt 0:00:06]} 25. Rc6 {[%emt 0:00:03]} Rd8 {[%emt 0:00:04]} 26. Rgc1 {
[%emt 0:00:10]} Rxd5 {[%emt 0:00:08]} 27. Rxc7 {[%emt 0:00:02]} Rxc7 {[%emt 0:
00:12]} 28. Rxc7 {[%emt 0:00:01]} Rb5 {[%emt 0:00:01]} 29. b3 {[%emt 0:00:00]}
a4 {[%emt 0:00:08]} 30. bxa4 {[%emt 0:00:05]} Rb2+ {[%emt 0:00:03]} 31. Kf3 {
[%emt 0:00:08]} Rxa2 {[%emt 0:00:04]} 32. Ra7 {[%emt 0:00:02]} b5 {[%emt 0:00:
04]} 33. axb5 {[%emt 0:00:03]} Rb2 {[%emt 0:00:02]} 34. b6 {[%emt 0:00:01]} Kg6
{[%emt 0:00:02]} 35. Rc7 {[%emt 0:00:28]} Bf6 {[%emt 0:00:04]} 36. Ke4 {
[%emt 0:00:09]} Rb5 {[%emt 0:00:10]} 37. b7 {[%emt 0:00:08]} h5 {[%emt 0:00:03]
} 38. Ba7 {[%emt 0:00:03]} 1-0

[Event "FIDE Women World Blitz 2021"]
[Site "Warsaw"]
[Date "2021.12.30"]
[Round "10.36"]
[White "Maisuradze, Nino"]
[Black "Jarocka, Liwia"]
[Result "0-1"]
[ECO "E49"]
[WhiteElo "2175"]
[BlackElo "1851"]
[Annotator "ChessBase"]
[PlyCount "111"]
[EventDate "2021.12.29"]
[EventType "swiss"]
[EventCountry "POL"]
[Tiebreak "Cut1 Buchholz"]
[SourceTitle "playchess.com"]
[Source "ChessBase"]
[SourceQuality "1"]
[TimeControl "180+2"]

1. d4 {[%emt 0:00:00]} Nf6 {[%emt 0:00:00]} 2. c4 {[%emt 0:00:03]} e6 {[%emt 0:
00:01]} 3. Nc3 {[%emt 0:00:06]} Bb4 {[%emt 0:00:03]} 4. e3 {[%emt 0:00:04]} O-O
{[%emt 0:00:02]} 5. Bd3 {[%emt 0:00:01]} d5 {[%emt 0:00:01]} 6. Nge2 {[%emt 0:
00:02]} c5 {[%emt 0:00:04]} 7. a3 {[%emt 0:00:03]} Bxc3+ {[%emt 0:00:03]} 8.
bxc3 {[%emt 0:00:03]} dxc4 {[%emt 0:00:01]} 9. Bxc4 {[%emt 0:00:02]} Qc7 {
[%emt 0:00:01]} 10. Bd3 {[%emt 0:00:16]} b6 {[%emt 0:00:03]} 11. Qa4 {[%emt 0:
00:27]} Bb7 {[%emt 0:00:14]} 12. O-O {[%emt 0:00:02]} e5 {[%emt 0:00:06]} 13.
Bb2 {[%emt 0:00:10]} Nbd7 {[%emt 0:00:09]} 14. Rac1 {[%emt 0:00:07]} Rfd8 {
[%emt 0:00:08]} 15. Rfd1 {[%emt 0:00:04]} a6 {[%emt 0:00:16]} 16. Ng3 {[%emt 0:
00:48]} b5 {[%emt 0:00:14]} 17. Qc2 {[%emt 0:00:01]} Re8 {[%emt 0:00:12]} 18.
a4 {[%emt 0:01:01]} Qc6 {[%emt 0:00:16]} 19. Ne4 {[%emt 0:00:13]} Nxe4 {
[%emt 0:00:04]} 20. f3 {[%emt 0:00:03]} Nef6 {[%emt 0:00:03]} 21. axb5 {
[%emt 0:00:02]} axb5 {[%emt 0:00:02]} 22. c4 {[%emt 0:00:02]} cxd4 {[%emt 0:00:
05]} 23. cxb5 {[%emt 0:00:01]} Qxc2 24. Rxc2 {[%emt 0:00:01]} dxe3 {[%emt 0:00:
12]} 25. Rc7 {[%emt 0:00:01]} Rab8 {[%emt 0:00:34]} 26. Bf5 {[%emt 0:00:01]}
Nb6 {[%emt 0:00:09]} 27. Re1 {[%emt 0:00:03]} Nbd5 {[%emt 0:00:02]} 28. Rc5 {
[%emt 0:00:02]} g6 {[%emt 0:00:08]} 29. Bc2 {[%emt 0:00:02]} Nb4 {[%emt 0:00:
03]} 30. Bb1 {[%emt 0:00:02]} Nfd5 {[%emt 0:00:08]} 31. Ba3 {[%emt 0:00:02]}
Ra8 {[%emt 0:00:14]} 32. Bb2 {[%emt 0:00:01]} Bc8 {[%emt 0:00:06]} 33. Be4 {
[%emt 0:00:01]} Be6 {[%emt 0:00:04]} 34. b6 {[%emt 0:00:02]} f5 {[%emt 0:00:02]
} 35. Bb1 {[%emt 0:00:01]} Nxb6 {[%emt 0:00:03]} 36. Rxe3 {[%emt 0:00:01]} Bf7
{[%emt 0:00:04]} 37. Rexe5 {[%emt 0:00:02]} Rxe5 {[%emt 0:00:01]} 38. Bxe5 {
[%emt 0:00:00]} Re8 {[%emt 0:00:02]} 39. Rb5 {[%emt 0:00:03]} N4d5 {[%emt 0:00:
03]} 40. f4 {[%emt 0:00:02]} Nd7 {[%emt 0:00:03]} 41. Bd4 {[%emt 0:00:04]} Re1+
{[%emt 0:00:02]} 42. Kf2 {[%emt 0:00:00]} Re8 {[%emt 0:00:03]} 43. Ba2 {
[%emt 0:00:02]} Nxf4 {[%emt 0:00:02]} 44. Bxf7+ {[%emt 0:00:03]} Kxf7 45. Rb7
Re7 {[%emt 0:00:02]} 46. Bb2 {[%emt 0:00:06]} Nd3+ {[%emt 0:00:01]} 47. Kf3 {
[%emt 0:00:03]} Nxb2 {[%emt 0:00:02]} 48. Rxb2 {[%emt 0:00:01]} Kg7 {[%emt 0:
00:01]} 49. Kf4 {[%emt 0:00:03]} Nf6 {[%emt 0:00:01]} 50. h3 {[%emt 0:00:03]}
h5 {[%emt 0:00:01]} 51. h4 {[%emt 0:00:06]} Re4+ {[%emt 0:00:01]} 52. Kg3 {
[%emt 0:00:01]} Rg4+ {[%emt 0:00:03]} 53. Kh3 {[%emt 0:00:00]} Rc4 {[%emt 0:00:
02]} 54. g3 {[%emt 0:00:03]} Ne4 {[%emt 0:00:01]} 55. Kg2 {[%emt 0:00:03]} Rc3
{[%emt 0:00:01]} 56. Rb7+ {[%emt 0:00:01]} 0-1